lending/lending_fUSD_20240908
["ID","MTS","AMOUNT","RATE_DAILY","PERIOD"]
[337572141,1725829840280,-28475.63233303,0.00014082,2]
[337572142,1725829840291,-1079.0,0.00014132,2]
[337572143,1725829840303,-943.2821,0.00014268,2]
[337572144,1725829840314,-3413.4275,0.00014268,2]
[337572145,1725829840326,-150.0,0.00014282,2]
[337572146,1725829840337,-150.0,0.00014368,2]
[337572147,1725829840349,-150.0,0.00014368,2]
[337572148,1725829840360,-150.0,0.00014368,2]
[337572149,1725829840371,-150.0,0.00014368,2]
[337572150,1725829840383,-150.0,0.00014368,2]
[337572151,1725829840394,-150.0,0.00014368,2]
[337572152,1725829840405,-150.0,0.00014368,2]
[337572153,1725829840416,-150.0,0.00014368,2]
[337572154,1725829840427,-315.0,0.00014419,2]
[337572155,1725829840438,-187.54,0.0001449,3]
[337572156,1725829840449,-562.62,0.0001449,3]
[337572157,1725829840461,-48369.17640438,0.000145,2]
[337572158,1725829840472,-727.0,0.00014505,2]
[337572159,1725829840483,-1223.789,0.00014596,2]
[337572160,1725829840494,-8988.697,0.00014633,2]
[337572161,1725829840505,-155.017,0.00014635,2]
[337572162,1725829840517,-363.71183847,0.00014637,2]
[337572163,1725829840528,-4717.8074,0.00014645,2]
[337572164,1725829840540,-5489.56557918,0.00014655,2]
[337572165,1725829840552,-176.6238,0.00014656,2]
[337572166,1725829840563,-1289.8741,0.00014656,2]
[337572167,1725829840574,-268.0911,0.00014656,2]
[337572168,1725829840585,-7048.5904,0.00014656,2]
[337572169,1725829840595,-363.71183846,0.00014675,2]
[337572170,1725829840606,-5489.56557918,0.00014696,2]
[337572171,1725829840617,-744.0477,0.000147,2]
[337572172,1725829840629,-1657.0,0.000147,2]
[337572173,1725829840639,-363.71183846,0.00014712,2]
[337572174,1725829840651,-93198.4947,0.00014733,2]
[337572175,1725829840661,-5489.56557918,0.00014737,2]
[337572176,1725829840673,-421.34449989,0.00014743,2]
[337572177,1725829840684,-3515.1513,0.00014744,2]
[337572178,1725829840695,-1000.0,0.00014744,2]
[337572179,1725829840705,-420.6543901,0.00014745,2]
[337572180,1725829840716,-500.0,0.00014745,2]
[337572181,1725829840728,-500.0,0.00014745,2]
[337572182,1725829840739,-444.87462828,0.00014745,2]
[337572183,1725829840750,-331.85122983,0.00014745,2]
[337572184,1725829840761,-118839.411968,0.00014746,3]
[337572185,1725829840772,-439.58526808,0.00014746,2]
[337572186,1725829840783,-151.74,0.00014746,2]
[337572187,1725829840794,-363.71183846,0.0001475,2]
[337572188,1725829840805,-245000.0,0.00014756,2]
[337572189,1725829840816,-150.0,0.00014763,2]
[337572190,1725829840828,-4244.26471315,0.00014768,3]
[337572191,1725829840839,-1000.0,0.00014768,2]
[337572192,1725829840850,-260.93,0.00014773,2]
[337572193,1725829840861,-5489.56557918,0.00014778,2]
[337572194,1725829840872,-4244.26471315,0.0001478,3]
[337572195,1725829840884,-151.74,0.0001478,2]
[337572196,1725829840894,-363.71183846,0.00014787,2]
[337572197,1725829840906,-50931.1765578,0.0001479,3]
[337572198,1725829840917,-10477.6862138,0.0001479,3]
[337572199,1725829840928,-303.560312,0.00014795,2]
[337572200,1725829840939,-1500.0,0.00014795,2]
[337572201,1725829840950,-101209.2134185,0.000148,2]
[337572202,1725829840961,-150.0,0.00014805,2]
[337572203,1725829840972,-4244.26471315,0.00014808,3]
[337572204,1725829840983,-5489.56557918,0.00014818,2]
[337572205,1725829840994,-363.71183846,0.00014825,2]
[337572206,1725829841006,-4244.26471315,0.00014849,3]
[337572207,1725829841016,-3000.0,0.0001485,2]
[337572208,1725829841028,-2095.53724275,0.00014851,3]
[337572209,1725829841040,-5489.56557918,0.00014859,2]
[337572210,1725829841052,-740.35643987,0.00014861,2]
[337572211,1725829841064,-4244.26471315,0.0001489,3]
[337572212,1725829841075,-707.26007486,0.000149,2]
[337572213,1725829841086,-381.9733011,0.000149,2]
[337572214,1725829841097,-320.3975,0.000149,2]
[337572215,1725829841107,-5489.56557918,0.000149,2]
[337572216,1725829841118,-578.80229398,0.000149,2]
[337572217,1725829841131,-1684.43080376,0.000149,2]
[337572218,1725829841142,-150.0,0.00014907,2]
[337572219,1725829841153,-150.0,0.00014908,2]
[337572220,1725829841165,-150.0,0.00014908,2]
[337572221,1725829841177,-4244.26471315,0.0001497,3]
[337572222,1725829841188,-500.0,0.00014973,2]
[337572223,1725829841199,-500.0,0.00014973,2]
[337572224,1725829841211,-500.0,0.00014973,2]
[337572225,1725829841222,-2095.53724275,0.0001498,3]
[337572226,1725829841832,-150.30113229,0.0001498,2]
[337572227,1725829841863,-4244.26471315,0.0001498,3]
[337572228,1725829841882,-151.74,0.0001498,2]
[337572229,1725829841891,-4244.26471315,0.0001499,3]
[337572230,1725829841901,-4191.0744855,0.0001499,3]
[337572231,1725829841911,-50292.893826,0.0001499,3]
[337572232,1725829841921,-439.58526808,0.0001499,2]
[337572233,1725829841932,-439.58526808,0.0001499,2]
[337572234,1725829841944,-151.74,0.0001499,2]
[337572235,1725829841954,-151.74,0.0001499,2]
[337572236,1725829841963,-151.74,0.0001499,2]
[337572237,1725829841974,-151.74,0.0001499,2]
[337572238,1725829841984,-151.74,0.0001499,2]
[337572239,1725829841993,-151.74,0.0001499,2]
[337572240,1725829842004,-151.74,0.0001499,2]
[337572241,1725829842013,-151.74,0.0001499,2]
[337572242,1725829842023,-151.74,0.0001499,2]
[337572243,1725829842032,-151.74,0.0001499,2]
[337572244,1725829842043,-151.74,0.0001499,2]
[337572245,1725829842052,-151.74,0.0001499,2]
[337572246,1725829842062,-151.74,0.0001499,2]
[337572247,1725829842072,-151.74,0.0001499,2]
[337572248,1725829842081,-151.74,0.0001499,2]
[337572249,1725829842090,-151.74,0.0001499,2]
[337572250,1725829842100,-151.74,0.0001499,2]
[337572251,1725829842109,-151.74,0.0001499,2]
[337572252,1725829842119,-151.74,0.0001499,2]
[337572253,1725829842129,-151.74,0.0001499,2]
[337572254,1725829842138,-151.74,0.0001499,2]
[337572255,1725829842148,-151.74,0.0001499,2]
[337572257,1725829842157,-151.74,0.0001499,2]
[337572259,1725829842167,-151.74,0.0001499,2]
[337572261,1725829842176,-151.74,0.0001499,2]
[337572263,1725829842186,-151.74,0.0001499,2]
[337572264,1725829842195,-151.74,0.0001499,2]
[337572265,1725829842204,-151.74,0.0001499,2]
[337572266,1725829842214,-151.74,0.0001499,2]
[337572267,1725829842224,-151.74,0.0001499,2]
[337572268,1725829842233,-151.74,0.0001499,2]
[337572269,1725829842242,-151.74,0.0001499,2]
[337572270,1725829842251,-635.8192301,0.00014998,2]
[337572271,1725829842261,-241.33539938,0.00014999,2]
[337572272,1725829842270,-2343.93033913,0.00014999,2]
[337572273,1725829842279,-1000.0,0.00014999,2]
[337572274,1725829842289,-1000.0,0.00014999,2]
[337572275,1725829842298,-1000.0,0.00014999,2]
[337572276,1725829842308,-938.0,0.00015,2]
[337572277,1725829842317,-29018.77736863,0.00015,2]
[337572278,1725829842326,-351704.9802087,0.00015,2]
[337572279,1725829842336,-5040844.17969217,0.00015,2]
[337572280,1725829842345,-215798.63479386,0.00015,2]
[337572281,1725829842356,-753.82153685,0.00015,2]
[337572282,1725829842365,-3494417.0027416,0.00015,2]
[337572283,1725829842375,-116743.49798574,0.00015,2]
[337572284,1725829842434,-242.03,0.00013629,2]
[337572285,1725829842444,-71.37099967,0.00014862,2]
[337572286,1725829842505,-292.34083879,0.00014862,2]
[337572287,1725829842515,-7868.2782116,0.00015,2]
[337572290,1725829842871,-45282.4988184,0.00015,2]
[337572291,1725829842890,-379.39523842,0.00015,2]
[337572299,1725829845505,-363.71183846,0.000149,2]
[337572300,1725829845515,-10641.28816149,0.00015,2]
[337572303,1725829895353,-200.0,0.00027397,60]
[337572304,1725829895394,-1000.0,0.0003,60]
[337572305,1725829895419,-151.0,0.0003,120]
[337572306,1725829895446,-3028.0,0.0003,60]
[337572307,1725829895470,-151.0,0.0003,120]
[337572308,1725829895509,-200.0,0.00030137,60]
[337572309,1725829895534,-1000.0,0.00030137,60]
[337572310,1725829895558,-1000.0,0.00030386,60]
[337572311,1725829895584,-1000.0,0.00030635,60]
[337572312,1725829895608,-150.0,0.00030644,120]
[337572313,1725829895632,-150.0,0.00030656,120]
[337572314,1725829895656,-150.0,0.00030722,120]
[337572315,1725829895687,-150.0,0.00030733,120]
[337572316,1725829895710,-150.0,0.00030801,120]
[337572317,1725829895734,-1000.0,0.00030884,60]
[337572318,1725829895759,-150.0,0.00030924,120]
[337572319,1725829895783,-151.0,0.00030986,120]
[337572320,1725829895809,-1000.0,0.00031133,60]
[337572321,1725829895834,-150.0,0.00031193,120]
[337572322,1725829895859,-150.0,0.00031273,120]
[337572323,1725829895883,-150.0,0.00031297,120]
[337572324,1725829895908,-1000.0,0.00031382,60]
[337572325,1725829895933,-150.0,0.0003139,120]
[337572326,1725829895957,-150.0,0.00031499,120]
[337572327,1725829895984,-150.0,0.00031518,120]
[337572328,1725829896008,-150.0,0.00031629,120]
[337572329,1725829896032,-1000.0,0.00031631,60]
[337572330,1725829896055,-150.0,0.00031684,120]
[337572331,1725829896084,-150.0,0.00031847,120]
[337572332,1725829896110,-150.0,0.00031852,120]
[337572333,1725829896139,-150.0,0.00031855,120]
[337572334,1725829896164,-1000.0,0.0003188,60]
[337572335,1725829896187,-150.0,0.00031902,120]
[337572336,1725829896212,-150.0,0.00031923,120]
[337572337,1725829896237,-150.0,0.0003195,120]
[337572338,1725829896261,-150.0,0.00031954,120]
[337572339,1725829896285,-150.0,0.0003196,120]
[337572340,1725829896309,-150.0,0.00031962,120]
[337572341,1725829896333,-151.0,0.00031973,120]
[337572342,1725829896360,-150.0,0.00032102,120]
[337572343,1725829896384,-1000.0,0.0003213,60]
[337572344,1725829898002,-150.0,0.0003222,120]
[337572345,1725829898028,-150.0,0.00032295,120]
[337572346,1725829898053,-150.0,0.0003236,120]
[337572347,1725829898081,-1000.0,0.00032379,60]
[337572348,1725829898105,-150.0,0.00032394,120]
[337572349,1725829898132,-150.0,0.00032462,120]
[337572350,1725829898160,-1000.0,0.00032628,60]
[337572351,1725829898185,-150.0,0.00032633,120]
[337572352,1725829898208,-150.0,0.00032671,120]
[337572353,1725829898230,-150.0,0.00032735,120]
[337572354,1725829898255,-150.0,0.00032738,120]
[337572355,1725829898278,-150.0,0.00032797,120]
[337572356,1725829898303,-150.0,0.00032833,120]
[337572357,1725829898328,-150.0,0.00032861,120]
[337572358,1725829898352,-180.87537554,0.00032876,120]
[337572359,1725829898374,-200.0,0.00032877,60]
[337572360,1725829898398,-1000.0,0.00032877,60]
[337572361,1725829898421,-151.0,0.00032959,120]
[337572362,1725829898444,-161.09417708,0.00033,120]
[337572363,1725829898468,-444.03344324,0.00033,90]
[337572364,1725829898493,-150.0,0.0003302,120]
[337572365,1725829898517,-150.0,0.00033039,120]
[337572366,1725829898541,-150.0,0.00033096,120]
[337572367,1725829898567,-150.0,0.00033115,120]
[337572368,1725829898591,-150.0,0.00033119,120]
[337572369,1725829898615,-1000.0,0.00033126,60]
[337572370,1725829898639,-150.0,0.00033149,120]
[337572371,1725829898663,-250.41,0.00033151,120]
[337572372,1725829898690,-2487.57,0.00033151,120]
[337572373,1725829898720,-150.0,0.00033261,120]
[337572374,1725829898743,-150.0,0.00033284,120]
[337572375,1725829898767,-300.0,0.0003333,40]
[337572376,1725829898791,-150.0,0.00033359,120]
[337572377,1725829898814,-1000.0,0.00033375,60]
[337572378,1725829898839,-150.0,0.00033551,120]
[337572379,1725829898862,-1000.0,0.00033624,60]
[337572380,1725829898885,-150.0,0.00033666,120]
[337572381,1725829898909,-150.0,0.00033693,120]
[337572382,1725829898934,-150.0,0.00033706,120]
[337572383,1725829898959,-150.0,0.0003372,120]
[337572384,1725829898982,-150.0,0.00033722,120]
[337572385,1725829899005,-150.0,0.00033777,120]
[337572386,1725829899027,-150.0,0.00033782,120]
[337572387,1725829899051,-1000.0,0.00033873,60]
[337572388,1725829899076,-151.0,0.00033945,120]
[337572389,1725829899098,-416.18952418,0.00033986,60]
[337572390,1725829899121,-1000.0,0.00034122,60]
[337572391,1725829899145,-1000.0,0.00034371,60]
[337572392,1725829899168,-1000.0,0.0003462,60]
[337572393,1725829899192,-1000.0,0.00034869,60]
[337572394,1725829899215,-151.0,0.00034932,120]
[337572395,1725829899238,-1700.75577292,0.00035,60]
[337572396,1725829899260,-200.0,0.00035,120]
[337572397,1725829899283,-1000.0,0.00035118,60]
[337572398,1725829899305,-1000.0,0.00035367,60]
[337572399,1725829899328,-200.0,0.00035616,60]
[337572400,1725829899351,-1000.0,0.00035616,60]
[337572401,1725829899375,-1000.0,0.00035866,60]
[337572402,1725829899398,-151.0,0.00035918,120]
[337572403,1725829899421,-172.15077186,0.00036,120]
[337572404,1725829899444,-151.0,0.00036,120]
[337572405,1725829899752,-1000.0,0.00036115,60]
[337572406,1725829899777,-1000.0,0.00036364,60]
[337572407,1725829899801,-1000.0,0.00036613,60]
[337572408,1725829899825,-1000.0,0.00036862,60]
[337572409,1725829899849,-151.0,0.00036904,120]
[337572410,1725829899872,-410.0,0.00036986,60]
[337572411,1725829899895,-1000.0,0.00037111,60]
[337572412,1725829899917,-1000.0,0.0003736,60]
[337572413,1725829899940,-1000.0,0.00037609,60]
[337572414,1725829899963,-1000.0,0.00037858,60]
[337572415,1725829899986,-151.0,0.0003789,120]
[337572416,1725829900008,-354.85473968,0.00037999,120]
[337572417,1725829900031,-359.55488087,0.00038,120]
[337572418,1725829900053,-1000.0,0.00038107,60]
[337572419,1725829900081,-200.0,0.00038356,60]
[337572420,1725829900103,-623.11409058,0.000385,120]
[337572421,1725829900127,-151.0,0.00038877,120]
[337572422,1725829900149,-1388.75854341,0.0003888,90]
[337572423,1725829900173,-600.0,0.00039,120]
[337572424,1725829900195,-600.0,0.00039,120]
[337572425,1725829900217,-600.0,0.00039,120]
[337572426,1725829900240,-1966.57939222,0.00039,120]
[337572427,1725829900262,-199.65471406,0.00039,120]
[337572428,1725829900284,-202.85738916,0.0003944,120]
[337572429,1725829900307,-9274.332475,0.00039498,120]
[337572430,1725829900331,-151.0,0.00039863,120]
[337572431,1725829900353,-1271.94139458,0.000399,120]
[337572432,1725829900378,-50000.0,0.0004,40]
[337572433,1725829900401,-414.1046577,0.0004,60]
[337572434,1725829900425,-1000.02656568,0.0004,60]
[337572435,1725829900447,-359.55488087,0.0004,120]
[337572436,1725829900470,-163.74296165,0.0004,120]
[337572437,1725829900493,-200.0,0.0004,120]
[337572438,1725829900516,-1595.4278872,0.0004,120]
[337572439,1725829900539,-1022.73896622,0.0004,120]
[337572440,1725829900562,-454.02709391,0.0004,120]
[337572441,1725829900585,-862.17679644,0.0004,120]
[337572442,1725829900608,-1108.67595313,0.0004,120]
[337572443,1725829900630,-568.93856132,0.0004,120]
[337572444,1725829900653,-330.6222199,0.0004,120]
[337572445,1725829900675,-182.7709083,0.0004,120]
[337572446,1725829900698,-1167.88153007,0.0004,120]
[337572447,1725829900724,-1333.44918945,0.0004,120]
[337572448,1725829900749,-364.62499892,0.0004,120]
[337572449,1725829900777,-1058.73293392,0.0004,120]
[337572450,1725829900801,-1657.26016626,0.0004,120]
[337572451,1725829900824,-1008.54,0.0004012,42]
[337572452,1725829900846,-164.74870152,0.00040344,90]
[337572453,1725829900868,-580.0,0.00040746,60]
[337572454,1725829900891,-1410.94303103,0.000408,120]
[337572455,1725829900913,-151.0,0.00040849,120]
[337572456,1725829900936,-1461.82724553,0.000409,120]
[337572457,1725829900961,-50000.0,0.00041,41]
[337572458,1725829900983,-1702.59632439,0.00041,120]
[337572459,1725829901005,-1026.65185799,0.00041,120]
[337572460,1725829901027,-945.13025748,0.00041,120]
[337572461,1725829901049,-962.9039354,0.00041078,120]
[337572462,1725829901073,-1000.0,0.00041095,120]
[337572463,1725829901095,-1000.0,0.00041095,120]
[337572464,1725829901118,-253.58615824,0.00041095,120]
[337572465,1725829901142,-1500.0,0.00041095,60]
[337572466,1725829901165,-174.42463307,0.00041095,60]
[337572467,1725829901188,-252.83198657,0.00041096,60]
[337572468,1725829901211,-1008.54,0.00041315,52]
[337572469,1725829901234,-465.12988328,0.000414,120]
[337572470,1725829901257,-5722.82,0.00041643,120]
[337572471,1725829901280,-151.0,0.00041836,120]
[337572472,1725829901305,-50000.0,0.00042,42]
[337572473,1725829901328,-337.24357373,0.00042,60]
[337572474,1725829901352,-151.0,0.00042,120]
[337572475,1725829901375,-1173.83032668,0.00042,120]
[337572476,1725829901397,-1580.2590273,0.00042,120]
[337572477,1725829901421,-1008.54,0.0004251,61]
[337572478,1725829901455,-1449.92719042,0.000428,60]
[337572479,1725829901478,-151.0,0.00042822,120]
[337572480,1725829901501,-276.28499621,0.0004288,120]
[337572481,1725829901524,-622.8721154,0.00042898,90]
[337572482,1725829901547,-845.9873967,0.00042898,90]
[337572483,1725829901573,-35509.89840374,0.00043,43]
[337572484,1725829908104,-150.0,0.00041096,60]
[337572485,1725829908134,-14490.10159626,0.00043,43]
[337572486,1725829908160,-719.10976174,0.00043,120]
[337572487,1725829908183,-1361.6261573,0.00043,120]
[337572488,1725829908207,-2011.60389621,0.00043,120]
[337572489,1725829908231,-185.15,0.00043014,120]
[337572490,1725829908256,-5722.82,0.00043561,120]
[337572491,1725829908279,-154.23739283,0.000437,60]
[337572492,1725829908302,-746.28528393,0.000437,120]
[337572493,1725829908327,-1008.54,0.00043705,70]
[337572494,1725829908351,-2589.99,0.000438,60]
[337572495,1725829908374,-1875.02515784,0.000438,111]
[337572496,1725829908397,-928.65608471,0.000438,120]
[337572497,1725829908420,-151.0,0.00043808,120]
[337572498,1725829908444,-500.0,0.00043835,120]
[337572499,1725829908470,-387.63897583,0.00043835,120]
[337572500,1725829908494,-500.0,0.00043835,120]
[337572501,1725829908518,-200.0,0.00043836,60]
[337572502,1725829908545,-50000.0,0.00044,44]
[337572503,1725829908569,-706.70136528,0.00044,120]
[337572504,1725829908593,-500.456727,0.00044,57]
[337572505,1725829908618,-500.0,0.00044109,120]
[337572506,1725829908643,-500.0,0.00044109,120]
[337572507,1725829908668,-60439.37510443,0.000442,120]
[337572508,1725829908693,-500.0,0.00044383,120]
[337572509,1725829908719,-500.0,0.00044383,120]
[337572510,1725829908744,-250.41,0.00044384,120]
[337572511,1725829908768,-2487.57,0.00044384,120]
[337572512,1725829908797,-500.0,0.00044657,120]
[337572513,1725829908820,-500.0,0.00044657,120]
[337572514,1725829908843,-2416.25080535,0.000447,120]
[337572515,1725829908867,-151.0,0.00044795,120]
[337572516,1725829908891,-2678.9876,0.000448,60]
[337572517,1725829908914,-491.65152161,0.000449,120]
[337572518,1725829908938,-1008.54,0.000449,80]
[337572519,1725829908962,-500.0,0.00044931,120]
[337572520,1725829908986,-630.04337462,0.00044931,120]
[337572521,1725829909014,-50000.0,0.00045,45]
[337572522,1725829909037,-150.0,0.00045,85]
[337572523,1725829909061,-283.44936007,0.00045,40]
[337572524,1725829909090,-2500.0,0.00045,60]
[337572525,1725829909116,-500.0,0.00045,120]
[337572526,1725829909140,-500.0,0.00045,120]
[337572527,1725829909167,-500.0,0.00045,120]
[337572528,1725829909192,-500.0,0.00045,120]
[337572529,1725829909216,-500.0,0.00045,120]
[337572530,1725829909240,-500.0,0.00045,120]
[337572531,1725829909263,-500.0,0.00045,120]
[337572532,1725829909287,-500.0,0.00045,120]
[337572533,1725829909310,-664.0,0.00045,120]
[337572534,1725829909334,-500.0,0.00045,120]
[337572535,1725829909358,-500.0,0.00045,120]
[337572536,1725829909387,-500.0,0.00045,120]
[337572537,1725829909411,-500.0,0.00045,120]
[337572538,1725829909435,-500.0,0.00045,120]
[337572539,1725829909460,-500.0,0.00045,120]
[337572540,1725829909484,-500.0,0.00045,120]
[337572541,1725829909508,-500.0,0.00045,120]
[337572542,1725829909532,-500.0,0.00045,120]
[337572543,1725829909555,-500.0,0.00045,120]
[337572544,1725829909579,-500.0,0.00045,120]
[337572545,1725829909604,-500.0,0.00045,120]
[337572546,1725829909627,-500.0,0.00045,120]
[337572547,1725829909651,-500.0,0.00045,120]
[337572548,1725829909674,-500.0,0.00045,120]
[337572549,1725829909698,-500.0,0.00045,120]
[337572550,1725829909721,-500.0,0.00045,120]
[337572551,1725829909743,-500.0,0.00045,120]
[337572552,1725829909765,-500.0,0.00045,120]
[337572553,1725829909787,-500.0,0.00045,120]
[337572554,1725829909811,-500.0,0.00045,120]
[337572555,1725829909834,-500.0,0.00045,120]
[337572556,1725829909858,-500.0,0.00045,120]
[337572557,1725829909883,-200.0,0.00045,120]
[337572558,1725829909906,-500.0,0.00045,120]
[337572559,1725829909929,-200.0,0.00045,120]
[337572560,1725829909952,-500.0,0.00045,120]
[337572561,1725829909975,-200.0,0.00045,120]
[337572562,1725829909997,-500.0,0.00045,120]
[337572563,1725829910021,-500.0,0.00045,120]
[337572564,1725829910044,-200.0,0.00045,120]
[337572565,1725829910069,-500.0,0.00045,120]
[337572566,1725829910095,-251.0,0.00045,120]
[337572567,1725829910120,-500.0,0.00045,120]
[337572568,1725829910146,-500.0,0.00045,120]
[337572569,1725829910170,-500.0,0.00045,120]
[337572570,1725829910194,-500.0,0.00045,120]
[337572571,1725829910217,-500.0,0.00045,120]
[337572572,1725829910483,-500.0,0.00045,120]
[337572573,1725829910521,-500.0,0.00045,120]
[337572574,1725829910544,-500.0,0.00045,120]
[337572575,1725829910568,-500.0,0.00045,120]
[337572576,1725829910590,-500.0,0.00045,120]
[337572577,1725829910612,-500.0,0.00045,120]
[337572578,1725829910635,-500.0,0.00045,120]
[337572579,1725829910657,-500.0,0.00045,120]
[337572580,1725829910689,-500.0,0.00045,120]
[337572581,1725829910714,-500.0,0.00045,120]
[337572582,1725829910738,-500.0,0.00045,120]
[337572583,1725829910762,-500.0,0.00045,120]
[337572584,1725829910787,-500.0,0.00045,120]
[337572585,1725829910810,-500.0,0.00045,120]
[337572586,1725829910834,-500.0,0.00045,120]
[337572587,1725829910858,-500.0,0.00045,120]
[337572588,1725829910881,-500.0,0.00045,120]
[337572589,1725829910904,-500.0,0.00045,120]
[337572590,1725829910930,-500.0,0.00045,120]
[337572591,1725829910953,-500.0,0.00045,120]
[337572592,1725829910975,-500.0,0.00045,120]
[337572593,1725829910999,-500.0,0.00045,120]
[337572594,1725829911021,-500.0,0.00045,120]
[337572595,1725829911044,-500.0,0.00045,120]
[337572596,1725829911068,-500.0,0.00045,120]
[337572597,1725829911095,-500.0,0.00045,120]
[337572598,1725829911119,-500.0,0.00045,120]
[337572599,1725829911144,-500.0,0.00045,120]
[337572600,1725829911168,-500.0,0.00045,120]
[337572601,1725829911191,-500.0,0.00045,120]
[337572602,1725829911214,-500.0,0.00045,120]
[337572603,1725829911237,-500.0,0.00045,120]
[337572604,1725829911263,-500.0,0.00045,120]
[337572605,1725829911288,-500.0,0.00045,120]
[337572606,1725829911314,-500.0,0.00045,120]
[337572607,1725829911337,-500.0,0.00045,120]
[337572608,1725829911363,-500.0,0.00045,120]
[337572609,1725829911385,-500.0,0.00045,120]
[337572610,1725829911408,-500.0,0.00045,120]
[337572611,1725829911430,-500.0,0.00045,120]
[337572612,1725829911454,-500.0,0.00045,120]
[337572613,1725829911476,-500.0,0.00045,120]
[337572614,1725829911499,-500.0,0.00045,120]
[337572615,1725829911522,-500.0,0.00045,120]
[337572616,1725829911545,-500.0,0.00045,120]
[337572617,1725829911567,-500.0,0.00045,120]
[337572618,1725829911590,-500.0,0.00045,120]
[337572619,1725829911613,-500.0,0.00045,120]
[337572620,1725829911638,-668.0,0.00045,120]
[337572621,1725829911660,-199.999999,0.00045,120]
[337572622,1725829911684,-260.40031985,0.00045,120]
[337572623,1725829911711,-40780.37951614,0.00045,120]
[337572624,1725829917286,-59814.20287851,0.00045,120]
[337572625,1725829917309,-494.20094181,0.00045,120]
[337572626,1725829917333,-880.713012,0.00045,120]
[337572627,1725829917357,-974.75278336,0.00045,120]
[337572628,1725829917381,-656.94150396,0.00045,120]
[337572629,1725829917405,-370.96897268,0.00045,120]
[337572630,1725829917430,-1031.58,0.00045,120]
[337572631,1725829917456,-3615.22,0.00045,120]
[337572632,1725829917479,-1600.0,0.00045,120]
[337572633,1725829917503,-5000.0,0.00045,120]
[337572634,1725829917526,-1312.5028083,0.00045,120]
[337572635,1725829917553,-535.14838881,0.00045205,120]
[337572636,1725829917576,-5722.82,0.00045479,120]
[337572637,1725829917599,-291.56820497,0.000456,120]
[337572638,1725829917960,-151.0,0.00045781,120]
[337572639,1725829918006,-50000.0,0.00046,46]
[337572640,1725829918030,-170.3,0.00046,96]
[337572641,1725829918054,-898.88720218,0.00046,120]
[337572642,1725829918078,-1891.61568916,0.00046,120]
[337572643,1725829918101,-1282.00593205,0.00046,120]
[337572644,1725829918125,-775.76665077,0.00046,120]
[337572645,1725829918149,-2896.05896785,0.00046027,120]
[337572646,1725829918172,-1061.29892279,0.00046027,120]
[337572647,1725829918195,-1008.54,0.00046095,89]
[337572648,1725829918218,-881.56805948,0.000465,120]
[337572649,1725829918242,-655.89589301,0.000465,120]
[337572650,1725829918266,-200.0,0.00046575,60]
[337572651,1725829918289,-247.95698044,0.00046704,40]
[337572652,1725829918313,-282.3519447,0.00046704,40]
[337572653,1725829918338,-316.58033385,0.00046704,40]
[337572654,1725829918362,-358.44898829,0.00046704,40]
[337572655,1725829918385,-151.0,0.00046767,120]